fUST/lending_fUST_20250523
["ID","MTS","AMOUNT","RATE_DAILY","PERIOD"]
[362075259,1747977038592,-430.0,0.00016438,2]
[362075260,1747977038602,-430.49980914,0.00016438,2]
[362075261,1747977038612,-431.59986347,0.00016438,2]
[362075262,1747977038622,-439.93442178,0.00016438,2]
[362075263,1747977038631,-430.0,0.00016438,2]
[362075264,1747977038641,-430.0,0.00016438,2]
[362075265,1747977038651,-508.46354388,0.00016438,2]
[362075266,1747977038660,-454.78914695,0.00016438,2]
[362075267,1747977038670,-436.34225006,0.00016438,2]
[362075268,1747977038679,-434.9948726,0.00016438,2]
[362075269,1747977038690,-438.27415782,0.00016438,2]
[362075270,1747977038701,-454.95183123,0.00016438,2]
[362075271,1747977038713,-430.0,0.00016438,2]
[362075272,1747977038726,-430.0,0.00016438,2]
[362075273,1747977038739,-430.0,0.00016438,2]
[362075274,1747977038749,-431.15316699,0.00016438,2]
[362075275,1747977038762,-342.29250877,0.00016438,2]
[362075276,1747977038773,-438.16109547,0.00016438,2]
[362075277,1747977038783,-430.0,0.00016438,2]
[362075278,1747977038793,-359.86006578,0.00016438,2]
[362075279,1747977038803,-431.18188258,0.00016438,2]
[362075280,1747977038814,-432.00778279,0.00016438,2]
[362075281,1747977038824,-346.11420101,0.00016438,2]
[362075282,1747977038834,-437.47362798,0.00016438,2]
[362075283,1747977038843,-430.0,0.00016438,2]
[362075284,1747977038853,-432.2812488,0.00016438,2]
[362075285,1747977038863,-446.43842016,0.00016438,2]
[362075286,1747977038872,-430.0,0.00016438,2]
[362075287,1747977038882,-439.96749608,0.00016438,2]
[362075288,1747977038892,-346.88749031,0.00016438,2]
[362075289,1747977038902,-438.79512699,0.00016438,2]
[362075290,1747977038911,-202.68,0.00016438,2]
[362075291,1747977038921,-1013.51420076,0.00016438,2]
[362075292,1747977038931,-434.84463496,0.00016438,2]
[362075293,1747977038941,-436.91205884,0.00016438,2]
[362075294,1747977038951,-341.56845574,0.00016438,2]
[362075295,1747977038960,-435.56530307,0.00016438,2]
[362075296,1747977038970,-430.59259568,0.00016438,2]
[362075297,1747977038979,-435.1930859,0.00016438,2]
[362075298,1747977038990,-434.39776715,0.00016438,2]
[362075299,1747977038999,-434.20138374,0.00016438,2]
[362075300,1747977039009,-350.0,0.00016438,2]
[362075301,1747977039018,-437.44561192,0.00016438,2]
[362075302,1747977039028,-430.0,0.00016438,2]
[362075303,1747977039038,-430.0,0.00016438,2]
[362075304,1747977039047,-431.44913117,0.00016438,2]
[362075305,1747977039057,-430.0,0.00016438,2]
[362075306,1747977039066,-430.0,0.00016438,2]
[362075307,1747977039076,-397.376007,0.00016438,2]
[362075308,1747977039086,-430.0,0.00016438,2]
[362075309,1747977039095,-390.0,0.00016438,2]
[362075310,1747977039104,-436.8446059,0.00016438,2]
[362075311,1747977039114,-430.0,0.00016438,2]
[362075312,1747977039123,-310.0,0.00016438,2]
[362075313,1747977039133,-430.0,0.00016438,2]
[362075314,1747977039143,-430.0,0.00016438,2]
[362075315,1747977039152,-430.0,0.00016438,2]
[362075316,1747977039162,-430.0,0.00016438,2]
[362075317,1747977039175,-440.1771151,0.00016438,2]
[362075318,1747977039185,-430.0,0.00016438,2]
[362075319,1747977039194,-430.0,0.00016438,2]
[362075320,1747977039204,-454.61824171,0.00016438,2]
[362075321,1747977039215,-501.58415416,0.00016438,2]
[362075322,1747977039224,-430.0,0.00016438,2]
[362075323,1747977039234,-430.0,0.00016438,2]
[362075324,1747977039244,-563.39598593,0.00016438,2]
[362075325,1747977039256,-352.20381841,0.00016438,2]
[362075326,1747977039266,-535.04,0.00016438,2]
[362075327,1747977039275,-430.0,0.00016438,2]
[362075328,1747977039285,-430.0,0.00016438,2]
[362075329,1747977039294,-430.0,0.00016438,2]
[362075330,1747977039303,-344.36413875,0.00016438,2]
[362075331,1747977039313,-400.65572594,0.00016438,2]
[362075332,1747977039323,-497.8143131,0.00016438,2]
[362075333,1747977039333,-435.1452007,0.00016438,2]
[362075334,1747977039343,-430.0,0.00016438,2]
[362075335,1747977039352,-436.27788476,0.00016438,2]
[362075336,1747977039362,-162.5,0.00016438,2]
[362075337,1747977039371,-430.0,0.00016438,2]
[362075338,1747977039380,-402.19760348,0.00016438,2]
[362075339,1747977039389,-430.0,0.00016438,2]
[362075340,1747977039398,-430.0,0.00016438,2]
[362075341,1747977039408,-430.0,0.00016438,2]
[362075342,1747977039417,-430.0,0.00016438,2]
[362075343,1747977039427,-430.0,0.00016438,2]
[362075344,1747977039436,-430.0,0.00016438,2]
[362075345,1747977039445,-430.0,0.00016438,2]
[362075346,1747977039455,-201.39041296,0.00016438,2]
[362075347,1747977039465,-430.0,0.00016438,2]
[362075348,1747977039474,-430.0,0.00016438,2]
[362075349,1747977039484,-430.0,0.00016438,2]
[362075350,1747977039493,-430.0,0.00016438,2]
[362075351,1747977039503,-430.0,0.00016438,2]
[362075352,1747977039512,-430.0,0.00016438,2]
[362075353,1747977039523,-430.0,0.00016438,2]
[362075354,1747977039533,-430.0,0.00016438,2]
[362075355,1747977039542,-430.0,0.00016438,2]
[362075356,1747977039552,-430.0,0.00016438,2]
[362075357,1747977039561,-837.54,0.00016438,2]
[362075358,1747977039571,-430.0,0.00016438,2]
[362075359,1747977039580,-430.0,0.00016438,2]
[362075360,1747977039590,-430.0,0.00016438,2]
[362075361,1747977039601,-430.0,0.00016438,2]
[362075362,1747977039610,-430.0,0.00016438,2]
[362075363,1747977039620,-430.0,0.00016438,2]
[362075364,1747977039629,-430.0,0.00016438,2]
[362075365,1747977039639,-462.2398733,0.00016438,2]
[362075366,1747977039649,-430.0,0.00016438,2]
[362075367,1747977039659,-430.0,0.00016438,2]
[362075368,1747977039669,-488.16,0.00016438,2]
[362075369,1747977039678,-430.0,0.00016438,2]
[362075370,1747977039687,-506.37363988,0.00016438,2]
[362075371,1747977039697,-432.2319265,0.00016438,2]
[362075373,1747977039706,-430.0,0.00016438,2]
[362075374,1747977039716,-806.47,0.00016438,2]
[362075375,1747977039726,-400.0,0.00016438,2]
[362075376,1747977039735,-430.0,0.00016438,2]
[362075377,1747977039745,-403.38605538,0.00016438,2]
[362075378,1747977039754,-430.0,0.00016438,2]
[362075379,1747977039764,-430.0,0.00016438,2]
[362075380,1747977039773,-505.17312824,0.00016438,2]
[362075381,1747977039784,-435.92778701,0.00016438,2]
[362075382,1747977039794,-801.97,0.00016438,2]
[362075383,1747977039804,-431.99183251,0.00016438,2]
[362075384,1747977039814,-1494.73,0.00016438,2]
[362075385,1747977039824,-278.53472328,0.00016438,2]
[362075386,1747977039833,-430.97805289,0.00016438,2]
[362075387,1747977039843,-430.0,0.00016438,2]
[362075388,1747977039852,-430.0,0.00016438,2]
[362075389,1747977039862,-360.34194656,0.00016438,2]
[362075390,1747977039871,-430.0,0.00016438,2]
[362075392,1747977039881,-1342.69,0.00016438,2]
[362075393,1747977039890,-159.67642601,0.00016438,2]
[362075394,1747977039899,-430.0,0.00016438,2]
[362075395,1747977039909,-430.0,0.00016438,2]
[362075396,1747977039919,-406.71864605,0.00016438,2]
[362075397,1747977039929,-431.13223606,0.00016438,2]
[362075398,1747977039938,-400.0,0.00016438,2]
[362075399,1747977039947,-396.3045612,0.00016438,2]
[362075400,1747977039957,-459.84833107,0.00016438,2]
[362075401,1747977039966,-430.0,0.00016438,2]
[362075402,1747977039976,-430.82667654,0.00016438,2]
[362075403,1747977039986,-430.0,0.00016438,2]
[362075404,1747977039996,-435.90785922,0.00016438,2]
[362075405,1747977040006,-401.55634106,0.00016438,2]
[362075406,1747977040015,-431.16317983,0.00016438,2]
[362075407,1747977040025,-442.96961639,0.00016438,2]
[362075408,1747977040034,-431.17411668,0.00016438,2]
[362075409,1747977040044,-430.96352664,0.00016438,2]
[362075410,1747977040054,-401.83847347,0.00016438,2]
[362075411,1747977040063,-430.0,0.00016438,2]
[362075412,1747977040072,-434.39209758,0.00016438,2]
[362075413,1747977040082,-430.0,0.00016438,2]
[362075414,1747977040091,-430.0,0.00016438,2]
[362075415,1747977040101,-404.52533915,0.00016438,2]
[362075416,1747977040111,-430.0,0.00016438,2]
[362075417,1747977040120,-434.7548671,0.00016438,2]
[362075418,1747977040130,-1604.88,0.00016438,2]
[362075419,1747977040139,-430.0,0.00016438,2]
[362075420,1747977040148,-430.88411686,0.00016438,2]
[362075421,1747977040158,-430.0,0.00016438,2]
[362075422,1747977040169,-430.63315128,0.00016438,2]
[362075423,1747977040181,-430.77431841,0.00016438,2]
[362075424,1747977040191,-432.70650513,0.00016438,2]
[362075425,1747977040200,-430.0,0.00016438,2]
[362075426,1747977040210,-529.88002527,0.00016438,2]
[362075427,1747977040220,-430.0,0.00016438,2]
[362075428,1747977040229,-436.27641255,0.00016438,2]
[362075429,1747977040240,-1500.39,0.00016438,2]
[362075430,1747977040251,-440.39843658,0.00016438,2]
[362075431,1747977040260,-434.10641363,0.00016438,2]
[362075432,1747977040270,-430.0,0.00016438,2]
[362075433,1747977040279,-430.0,0.00016438,2]
[362075434,1747977040289,-500.0,0.00016438,2]
[362075435,1747977040299,-552.33428138,0.00016438,2]
[362075436,1747977040310,-430.0,0.00016438,2]
[362075437,1747977040320,-430.0,0.00016438,2]
[362075438,1747977040329,-1094.46,0.00016438,2]
[362075439,1747977040338,-431.64843363,0.00016438,2]
[362075440,1747977040348,-401.4543506,0.00016438,2]
[362075441,1747977040358,-406.90257499,0.00016438,2]
[362075442,1747977040367,-350.21535624,0.00016438,2]
[362075443,1747977040376,-430.0,0.00016438,2]
[362075444,1747977040386,-406.12322878,0.00016438,2]
[362075445,1747977040396,-439.85312709,0.00016438,2]
[362075446,1747977040405,-430.0,0.00016438,2]
[362075447,1747977040416,-430.0,0.00016438,2]
[362075448,1747977040427,-434.46216082,0.00016438,2]
[362075449,1747977040438,-505.29735372,0.00016438,2]
[362075450,1747977040447,-430.0,0.00016438,2]
[362075451,1747977040458,-430.0,0.00016438,2]
[362075452,1747977040467,-430.0,0.00016438,2]
[362075453,1747977040478,-430.0,0.00016438,2]
[362075454,1747977040488,-404.78534259,0.00016438,2]
[362075455,1747977040497,-430.0,0.00016438,2]
[362075456,1747977040507,-430.0,0.00016438,2]
[362075457,1747977040517,-432.25868997,0.00016438,2]
[362075458,1747977040527,-430.0,0.00016438,2]
[362075459,1747977040537,-401.08164767,0.00016438,2]
[362075460,1747977040547,-442.19,0.00016438,2]
[362075461,1747977040558,-431.35641826,0.00016438,2]
[362075462,1747977040568,-430.0,0.00016438,2]
[362075463,1747977040579,-430.0,0.00016438,2]
[362075464,1747977040589,-403.88753872,0.00016438,2]
[362075465,1747977040598,-404.79247603,0.00016438,2]
[362075466,1747977040610,-430.0,0.00016438,2]
[362075467,1747977040619,-361.84095569,0.00016438,2]
[362075468,1747977040628,-430.0,0.00016438,2]
[362075469,1747977040638,-430.0,0.00016438,2]
[362075470,1747977040648,-403.33781037,0.00016438,2]
[362075471,1747977040658,-1002.52,0.00016438,2]
[362075472,1747977040667,-430.0,0.00016438,2]
[362075473,1747977040676,-404.13676439,0.00016438,2]
[362075474,1747977040686,-430.0,0.00016438,2]
[362075475,1747977040696,-400.4095493,0.00016438,2]
[362075476,1747977040706,-434.67710404,0.00016438,2]
[362075477,1747977040717,-430.0,0.00016438,2]
[362075478,1747977040728,-430.0,0.00016438,2]
[362075479,1747977040737,-430.0,0.00016438,2]
[362075480,1747977040746,-430.0,0.00016438,2]
[362075481,1747977040756,-401.2017763,0.00016438,2]
[362075482,1747977040765,-430.0,0.00016438,2]
[362075483,1747977040776,-1005.6498079,0.00016438,2]
[362075484,1747977040786,-401.95880687,0.00016438,2]
[362075485,1747977040796,-430.0,0.00016438,2]
[362075486,1747977040805,-893.63,0.00016684,3]
[362075487,1747977040815,-297.86,0.00016692,3]
[362075488,1747977040825,-420.0,0.00016695,2]
[362075489,1747977040835,-256.0,0.00016695,2]
[362075490,1747977040845,-420.0,0.00016695,2]
[362075491,1747977040980,-2382.9,0.00016702,3]
[362075492,1747977040991,-1191.45,0.00016702,3]
[362075493,1747977041001,-595.72,0.00016702,3]
[362075494,1747977041011,-431.22536101,0.00016712,2]
[362075495,1747977041020,-430.0,0.00016712,2]
[362075496,1747977041030,-296.70935938,0.00016712,2]
[362075497,1747977041040,-430.0,0.00016712,2]
[362075498,1747977041049,-430.0,0.00016712,2]
[362075499,1747977041058,-430.0,0.00016712,2]
[362075500,1747977041068,-430.0,0.00016712,2]
[362075501,1747977041077,-415.5241576,0.00016712,2]
[362075502,1747977041086,-430.0,0.00016712,2]
[362075503,1747977041096,-535.04,0.00016712,2]
[362075504,1747977041105,-430.0,0.00016712,2]
[362075505,1747977041114,-430.0,0.00016712,2]
[362075506,1747977041123,-430.0,0.00016712,2]
[362075507,1747977041132,-430.0,0.00016712,2]
[362075508,1747977041142,-430.0,0.00016712,2]
[362075509,1747977041152,-430.0,0.00016712,2]
[362075510,1747977041161,-280.65396975,0.00016712,2]
[362075511,1747977041172,-277.99,0.00016712,2]
[362075512,1747977041182,-430.0,0.00016712,2]
[362075513,1747977041191,-430.0,0.00016712,2]
[362075514,1747977041201,-430.0,0.00016712,2]
[362075515,1747977041211,-430.0,0.00016712,2]
[362075516,1747977041220,-430.0,0.00016712,2]
[362075517,1747977041229,-430.0,0.00016712,2]
[362075518,1747977041238,-430.0,0.00016712,2]
[362075519,1747977041248,-837.54,0.00016712,2]
[362075520,1747977041259,-430.0,0.00016712,2]
[362075521,1747977041269,-430.0,0.00016712,2]
[362075522,1747977041278,-430.0,0.00016712,2]
[362075523,1747977041287,-566.27510713,0.00016712,2]
[362075524,1747977041297,-430.0,0.00016712,2]
[362075525,1747977041306,-430.0,0.00016712,2]
[362075526,1747977041315,-430.0,0.00016712,2]
[362075527,1747977041325,-488.16,0.00016712,2]
[362075528,1747977041334,-430.0,0.00016712,2]
[362075529,1747977041343,-430.0,0.00016712,2]
[362075530,1747977041352,-806.47,0.00016712,2]
[362075531,1747977041362,-430.0,0.00016712,2]
[362075532,1747977041371,-801.97,0.00016712,2]
[362075533,1747977041381,-1494.73,0.00016712,2]
[362075534,1747977041390,-430.0,0.00016712,2]
[362075535,1747977041399,-305.89976859,0.00016712,2]
[362075536,1747977041409,-430.0,0.00016712,2]
[362075537,1747977041418,-1342.69,0.00016712,2]
[362075538,1747977041428,-430.0,0.00016712,2]
[362075539,1747977041437,-430.0,0.00016712,2]
[362075540,1747977041446,-430.0,0.00016712,2]
[362075541,1747977041456,-430.0,0.00016712,2]
[362075542,1747977041466,-430.0,0.00016712,2]
[362075543,1747977041475,-430.0,0.00016712,2]
[362075544,1747977041484,-430.0,0.00016712,2]
[362075545,1747977041494,-1604.88,0.00016712,2]
[362075546,1747977041503,-430.0,0.00016712,2]
[362075547,1747977041512,-430.0,0.00016712,2]
[362075548,1747977041521,-430.0,0.00016712,2]
[362075549,1747977041531,-1500.39,0.00016712,2]
[362075550,1747977041541,-400.0,0.00016712,2]
[362075551,1747977041551,-481.67708032,0.00016712,2]
[362075552,1747977041561,-430.0,0.00016712,2]
[362075553,1747977041571,-430.0,0.00016712,2]
[362075554,1747977041580,-1094.46,0.00016712,2]
[362075555,1747977041589,-430.0,0.00016712,2]
[362075556,1747977041599,-430.0,0.00016712,2]
[362075557,1747977041608,-217.76,0.00016712,2]
[362075558,1747977041617,-430.0,0.00016712,2]
[362075559,1747977041626,-430.0,0.00016712,2]
[362075560,1747977041636,-430.0,0.00016712,2]
[362075561,1747977041645,-430.0,0.00016712,2]
[362075562,1747977041654,-430.0,0.00016712,2]
[362075563,1747977041664,-430.0,0.00016712,2]
[362075564,1747977041673,-430.0,0.00016712,2]
[362075565,1747977041682,-442.19,0.00016712,2]
[362075566,1747977041691,-430.0,0.00016712,2]
[362075567,1747977041701,-432.42692126,0.00016712,2]
[362075569,1747977041711,-430.0,0.00016712,2]
[362075570,1747977041720,-430.0,0.00016712,2]
[362075572,1747977041729,-1002.52,0.00016712,2]
[362075574,1747977041739,-430.0,0.00016712,2]
[362075576,1747977041748,-447.96823272,0.00016712,2]
[362075577,1747977041757,-430.0,0.00016712,2]
[362075578,1747977041767,-430.0,0.00016712,2]
[362075579,1747977041776,-430.0,0.00016712,2]
[362075580,1747977041785,-430.0,0.00016712,2]
[362075581,1747977041795,-1088.0,0.0001678,2]
[362075582,1747977041804,-1110.79523974,0.00016799,2]
[362075583,1747977041814,-498.39473656,0.00016873,2]
[362075584,1747977041823,-151.0,0.00016898,2]
[362075585,1747977041833,-151.0,0.00016898,2]
[362075586,1747977041842,-500.0,0.00016898,2]
[362075587,1747977041851,-500.0,0.00016898,2]
[362075588,1747977041862,-500.0,0.00016898,2]
[362075589,1747977041871,-500.0,0.00016898,2]
[362075590,1747977041880,-500.0,0.00016898,2]
[362075591,1747977041890,-365.38641952,0.00016898,2]
[362075592,1747977041900,-500.0,0.00016898,2]
[362075593,1747977041910,-500.0,0.00016898,2]
[362075594,1747977041919,-500.0,0.00016898,2]
[362075595,1747977041928,-376.3780946,0.00016898,2]
[362075596,1747977041938,-500.0,0.00016898,2]
[362075597,1747977041947,-500.0,0.00016898,2]
[362075598,1747977041957,-500.0,0.00016898,2]
[362075599,1747977041967,-500.0,0.00016898,2]
[362075600,1747977041976,-500.0,0.00016898,2]
[362075601,1747977041986,-500.0,0.00016898,2]
[362075602,1747977041996,-500.0,0.00016898,2]
[362075603,1747977042005,-500.0,0.00016898,2]
[362075604,1747977042015,-350.0,0.00016898,2]
[362075605,1747977042024,-1095.11279886,0.00016898,2]
[362075606,1747977042033,-240.0853027,0.00016899,2]
[362075607,1747977042043,-430.0,0.00016899,2]
[362075608,1747977042052,-434.42979062,0.00016899,2]
[362075609,1747977042062,-400.99812882,0.00016899,2]
[362075610,1747977042072,-468.25648941,0.00016899,2]
[362075611,1747977042082,-436.30482897,0.00016899,2]
[362075612,1747977042091,-430.0,0.00016899,2]
[362075613,1747977042100,-431.53127385,0.00016899,2]
[362075614,1747977042109,-430.0,0.00016899,2]
[362075615,1747977042119,-400.64373899,0.00016899,2]
[362075616,1747977042128,-404.03782181,0.00016899,2]
[362075617,1747977042137,-430.0,0.00016899,2]
[362075618,1747977042146,-430.0,0.00016899,2]
[362075619,1747977042155,-404.64192882,0.00016899,2]
[362075620,1747977042165,-404.85987322,0.00016899,2]
[362075621,1747977042177,-276.38800183,0.00016899,2]
[362075622,1747977042186,-404.58172728,0.00016899,2]
[362075623,1747977042196,-499.62852378,0.00016899,2]
[362075624,1747977042205,-400.0,0.00016899,2]
[362075625,1747977042215,-404.51408932,0.00016899,2]
[362075626,1747977042224,-406.43265154,0.00016899,2]
[362075627,1747977042233,-404.28750829,0.00016899,2]
[362075628,1747977042244,-401.03447428,0.00016899,2]
[362075629,1747977042254,-438.80313453,0.00016899,2]
[362075630,1747977042263,-403.80470438,0.00016899,2]
[362075631,1747977042272,-400.92343834,0.00016899,2]
[362075632,1747977042282,-400.0,0.00016899,2]
[362075633,1747977042291,-401.49807352,0.00016899,2]
[362075634,1747977042300,-404.63135256,0.00016899,2]
[362075635,1747977042310,-432.57930468,0.00016899,2]
[362075636,1747977042319,-430.0,0.00016899,2]
[362075637,1747977042328,-430.0,0.00016899,2]
[362075638,1747977042337,-434.28679356,0.00016899,2]
[362075639,1747977042347,-404.74376762,0.00016899,2]
[362075640,1747977042356,-431.05450418,0.00016899,2]
[362075641,1747977042365,-430.0,0.00016899,2]
[362075642,1747977042374,-411.02948161,0.00016899,2]
[362075643,1747977042383,-500.0,0.00016899,2]
[362075644,1747977042392,-414.86034019,0.00016899,2]
[362075645,1747977042402,-383.75492711,0.00016899,2]
[362075646,1747977042411,-403.05308402,0.00016899,2]
[362075647,1747977042420,-400.72784792,0.00016899,2]
[362075648,1747977042430,-401.2236636,0.00016899,2]
[362075649,1747977042439,-401.04935544,0.00016899,2]
[362075650,1747977042449,-430.0,0.00016899,2]
[362075651,1747977042458,-404.70898612,0.00016899,2]
[362075652,1747977042467,-430.0,0.00016899,2]
[362075653,1747977042478,-408.59727887,0.00016899,2]
[362075654,1747977042489,-430.0,0.00016899,2]
[362075655,1747977042499,-430.0,0.00016899,2]
[362075656,1747977042508,-430.0,0.00016899,2]
[362075657,1747977042519,-431.16128126,0.00016899,2]
[362075658,1747977042530,-432.40663403,0.00016899,2]
[362075659,1747977042540,-430.80305479,0.00016899,2]
[362075660,1747977042549,-435.53343164,0.00016899,2]
[362075661,1747977042559,-352.96565992,0.00016899,2]
[362075662,1747977042569,-430.33857774,0.00016899,2]
[362075663,1747977042579,-431.23968415,0.00016899,2]
[362075664,1747977042588,-362.83098338,0.00016899,2]
[362075665,1747977042598,-433.69018147,0.00016899,2]
[362075666,1747977042607,-430.0,0.00016899,2]
[362075667,1747977042617,-430.70123988,0.00016899,2]
[362075668,1747977042626,-496.05454185,0.00016899,2]
[362075669,1747977042636,-430.0,0.00016899,2]
[362075670,1747977042646,-430.0,0.00016899,2]
[362075671,1747977042655,-351.72105202,0.00016899,2]
[362075672,1747977042665,-431.60122193,0.00016899,2]
[362075673,1747977042675,-430.97759474,0.00016899,2]
[362075674,1747977042684,-430.0,0.00016899,2]
[362075676,1747977042694,-433.317411,0.00016899,2]
[362075678,1747977042703,-443.88170095,0.00016899,2]
[362075680,1747977042712,-407.89680242,0.00016899,2]
[362075682,1747977042722,-403.08298666,0.00016899,2]
[362075684,1747977042731,-431.208295,0.00016899,2]
[362075686,1747977042741,-407.60413528,0.00016899,2]
[362075687,1747977042751,-407.72453645,0.00016899,2]
[362075688,1747977042760,-401.48603471,0.00016899,2]
[362075689,1747977042770,-430.0,0.00016899,2]
[362075690,1747977042780,-402.01822637,0.00016899,2]
[362075691,1747977042789,-430.0,0.00016899,2]
[362075692,1747977042799,-434.30102864,0.00016899,2]
[362075693,1747977042808,-437.48307277,0.00016899,2]
[362075694,1747977042818,-259.17645524,0.00016899,2]
[362075695,1747977042828,-435.6949672,0.00016899,2]
[362075696,1747977042838,-430.0,0.00016899,2]
[362075697,1747977042848,-435.70051153,0.00016899,2]
[362075698,1747977042857,-438.96900491,0.00016899,2]
[362075700,1747977042867,-435.91324598,0.00016899,2]
[362075702,1747977042877,-350.60056695,0.00016899,2]
[362075704,1747977042886,-435.65840138,0.00016899,2]
[362075706,1747977042896,-431.43347812,0.00016899,2]
[362075708,1747977042905,-435.86065521,0.00016899,2]
[362075710,1747977042915,-433.93240176,0.00016899,2]
[362075712,1747977042925,-550.3720993,0.00016899,2]
[362075714,1747977042934,-440.8711456,0.00016899,2]
[362075716,1747977042944,-433.13257644,0.00016899,2]
[362075718,1747977042953,-434.1164367,0.00016899,2]
[362075719,1747977042963,-570.0,0.00016899,2]
[362075721,1747977042972,-432.42737281,0.00016899,2]
[362075722,1747977042982,-435.40572821,0.00016899,2]
[362075724,1747977042992,-351.94832827,0.00016899,2]
[362075725,1747977043001,-434.47994326,0.00016899,2]
[362075726,1747977043011,-441.06261474,0.00016899,2]
[362075727,1747977043020,-431.05791266,0.00016899,2]
[362075728,1747977043030,-435.46097694,0.00016899,2]
[362075729,1747977043039,-436.48330293,0.00016899,2]
[362075730,1747977043049,-151.0,0.000169,2]
[362075731,1747977043061,-151.0,0.000169,2]
[362075732,1747977043070,-2614.9,0.000169,2]
[362075733,1747977043080,-2614.9,0.000169,2]
[362075734,1747977043090,-430.0,0.00016986,2]
[362075735,1747977043099,-535.04,0.00016986,2]
[362075736,1747977043109,-430.0,0.00016986,2]
[362075737,1747977043118,-430.0,0.00016986,2]
[362075738,1747977043128,-217.41110893,0.00016986,2]
[362075740,1747977043138,-430.0,0.00016986,2]
[362075742,1747977043147,-430.0,0.00016986,2]
[362075743,1747977043157,-430.0,0.00016986,2]
[362075744,1747977043167,-430.0,0.00016986,2]
[362075745,1747977043179,-430.0,0.00016986,2]
[362075747,1747977043189,-450.07222336,0.00016986,2]
[362075749,1747977043199,-430.0,0.00016986,2]
[362075750,1747977043207,-430.0,0.00016986,2]
[362075751,1747977043217,-430.0,0.00016986,2]
[362075752,1747977043226,-837.54,0.00016986,2]
[362075753,1747977043235,-469.72961067,0.00016986,2]
[362075754,1747977043245,-430.0,0.00016986,2]
[362075755,1747977043256,-430.0,0.00016986,2]
[362075756,1747977043266,-430.0,0.00016986,2]
[362075757,1747977043276,-430.0,0.00016986,2]
[362075758,1747977043286,-430.0,0.00016986,2]
[362075760,1747977043295,-488.16,0.00016986,2]
[362075761,1747977043304,-364.9598121,0.00016986,2]
[362075762,1747977043314,-2614.9,0.00016986,2]
[362075763,1747977043326,-2614.9,0.00016986,2]
[362075764,1747977043336,-430.0,0.00016986,2]
[362075765,1747977043346,-806.47,0.00016986,2]
[362075766,1747977043356,-801.97,0.00016986,2]
[362075767,1747977043366,-1494.73,0.00016986,2]
[362075768,1747977043378,-430.0,0.00016986,2]
[362075769,1747977043390,-430.0,0.00016986,2]
[362075770,1747977043399,-1342.69,0.00016986,2]
[362075771,1747977043408,-430.0,0.00016986,2]
[362075772,1747977043417,-430.0,0.00016986,2]
[362075773,1747977043427,-430.0,0.00016986,2]
[362075774,1747977043436,-430.0,0.00016986,2]
[362075775,1747977043446,-430.0,0.00016986,2]
[362075776,1747977043456,-227.38021921,0.00016986,2]
[362075777,1747977043465,-430.0,0.00016986,2]
[362075778,1747977043475,-1604.88,0.00016986,2]
[362075779,1747977043484,-430.0,0.00016986,2]
[362075780,1747977043493,-430.0,0.00016986,2]
[362075781,1747977043503,-430.0,0.00016986,2]
[362075782,1747977043512,-1500.39,0.00016986,2]
[362075783,1747977043521,-430.0,0.00016986,2]
[362075784,1747977043531,-1094.46,0.00016986,2]
[362075785,1747977043540,-430.0,0.00016986,2]
[362075786,1747977043550,-430.0,0.00016986,2]
[362075787,1747977043559,-430.0,0.00016986,2]